Cogmind - Beta 14 @@@ ROGUE MODE // 2025.04.21 @ 01:50:04 Player: jumpy Result: Destroyed by as-44613 with Assembled Blade Performance ------------- Evolutions (0) 0 Regions Visited (2) 400 Robots Destroyed (10) 50 Value Destroyed (200) 200 Prototype IDs (0) 0 Alien Tech Used (0) 0 Bonus (0) 0 TOTAL SCORE: 650 Bonus ------- None Cogmind --------- Core Integrity 0/250 Matter 300/300 Energy 150/160 System Corruption 0% Temperature Cool (56) Movement Core (250) Ox4 Location -10/Mines Parts ------- > --- POWER (1) -------- Light Nuclear Core > --- PROPULSION (2) --- (None) > --- UTILITY (2) ------ Small Storage Unit > --- WEAPON (2) ------- Particle Gun > --- INVENTORY (8) ---- Light Ion Engine Flight Unit Flight Unit Flight Unit Flight Unit Flight Unit Seismic Detector Light Cannon Peak State ------------ > --- POWER ------------ Light Nuclear Core > --- PROPULSION ------- Aluminum Leg Aluminum Leg > --- UTILITY ---------- Small Storage Unit Seismic Detector > --- WEAPON ----------- Small Laser Particle Gun > --- INVENTORY -------- Light Ion Engine Flight Unit Flight Unit Flight Unit Flight Unit Flight Unit Seismic Detector Light Cannon [Rating: 10] Favorites ----------- Power Ion Engine Engine Ion Engine Power Core Light Nuclear Core Propulsion Aluminum Leg Leg Aluminum Leg Utility Small Storage Unit Device Seismic Detector Storage Small Storage Unit Weapon Small Laser Energy Gun Small Laser Ballistic Gun Assault Rifle Build | -11 -10 -10 ------- Run | Yrd Mat Min Slots Evolved . | . . . Power . | . . . Propulsion . | . . . Utility . | . . . Weapon . | . . . Parts Attached 16 | 7 2 7 Power 3 | 1 . 2 Engine 2 | 1 . 1 Core 1 | . . 1 Reactor . | . . . Propulsion 7 | 2 2 3 Treads . | . . . Leg 7 | 2 2 3 Wheel . | . . . Hover . | . . . Flight . | . . . Utility 2 | 2 . . Device 1 | 1 . . Storage 1 | 1 . . Processor . | . . . Hackware . | . . . Protection . | . . . Artifact . | . . . Weapon 4 | 2 . 2 Energy Gun 3 | 1 . 2 Energy Cannon . | . . . Ballistic Gun 1 | 1 . . Ballistic Cannon . | . . . Launcher . | . . . Special Weapon . | . . . Impact Weapon . | . . . Slashing Weapon . | . . . Piercing Weapon . | . . . Special Melee Weapon . | . . . Unidentified Prototypes . | . . . Parts Lost 7 | . . 7 Power 1 | . . 1 Propulsion 2 | . . 2 Utility 1 | . . 1 Weapon 3 | . . 3 Highest Loss Streak 4 | . . 4 To Critical Strikes . | . . . Average Slot Usage (%) 96 | . 100 95 Engine 12 | . 14 12 Leg 27 | . 28 27 Device 14 | . 14 14 Storage 14 | . 14 14 Energy Gun 13 | . 14 13 Ballistic Gun 11 | . 14 10 Peak Build Rating 10 | 7 7 10 Average Rating 6 | 4 7 6 On Entrance 4 | . 7 7 Naked Turns . | . . . Heaviest Build 15 | 12 12 15 Greatest Support 20 | 20 20 20 Greatest Overweight (x) 1 | . . 1 Average Overweight (x) . | . . . Largest Inventory Capacity 8 | 8 8 8 Average Capacity 7 | 6 8 8 Most Carried 8 | 5 8 8 Average Carried 6 | 2 6 8 Final Capacity 8 | 8 8 8 Final Carried 8 | 5 8 8 Class Distribution -------------------- 51% | Mutant 48% | Scavenger-Mutant Dominant Class ---------------- Mutant | -10/Materials Scavenger-Mutant | -10/Mines Resources | -11 -10 -10 ----------- Run | Yrd Mat Min Matter Collected 422 | 165 99 158 Remotely . | . . . Salvage Created 308 | 50 114 144 Parts 23 | 8 8 7 Haulers Intercepted . | . . . Recyclers Shooed . | . . . Parts Field Recycled . | . . . Retrieved Matter . | . . . Parts Self-Destructed . | . . . Prevented . | . . . Kills | -11 -10 -10 ------- Run | Yrd Mat Min Combat Hostiles Destroyed 11 | . 5 6 Guns 11 | . 5 6 Classes Destroyed 4 | 1 2 1 Tunneler 3 | 3 . . Swarmer 3 | . 3 . Grunt 4 | . 2 2 Assembled 4 | . . 4 Best Kill Streak 3 | 3 3 3 Combat Bots Only 3 | . 3 3 Max Kills in Single Turn 1 | 1 1 1 Gunslinging . | . . . Exploded . | . . . Melee . | . . . Uniques/NPCs Destroyed . | . . . Combat | -11 -10 -10 -------- Run | Yrd Mat Min Hostile Shots Fired 82 | . 38 44 Missed 14 | . 6 8 Damage Taken 980 | . 326 654 Core 268 | . 87 181 Absorbed by Shields . | . . . Core Remaining (%) 100 | 100 . . Volleys Fired 50 | 3 18 29 Largest 2 | 2 2 2 Hottest 105 | 60 60 105 Shots Fired 80 | 6 36 38 Gun 80 | 6 36 38 Cannon . | . . . Launcher . | . . . Special . | . . . Kinetic 34 | 3 18 13 Thermal 46 | 3 18 25 Explosive . | . . . Electromagnetic . | . . . Robot Hit Streak 7 | 3 7 4 Robot Miss Streak 3 | 1 3 3 Penetration Max . | . . . Secondary Targets 1 | . 1 . Max Gunslinging Chain 1 | . 1 . Shots Hit Robots 48 | 4 21 23 Core Hits 24 | 3 8 13 Critical Kills . | . . . Critical Parts Destroyed . | . . . Critical Strikes . | . . . Melee Attacks . | . . . Impact . | . . . Slashing . | . . . Piercing . | . . . Sneak Attacks . | . . . Combat Hostiles . | . . . Follow-up Attacks . | . . . Damage Inflicted 597 | 46 251 300 Guns 593 | 46 247 300 Cannons . | . . . Explosions . | . . . Melee . | . . . Ramming 4 | . 4 . Kinetic 245 | 22 107 116 Thermal 348 | 24 140 184 Explosive . | . . . Electromagnetic . | . . . Impact . | . . . Slashing . | . . . Piercing . | . . . Highest Corruption . | . . . Average Corruption . | . . . Corruption Purged . | . . . Corruption Blocked . | . . . Overload Shots . | . . . Overflow Damage . | . . . Projectiles . | . . . Explosions . | . . . Melee . | . . . Knockbacks . | . . . Impact . | . . . Kinetic . | . . . Secondary . | . . . Self-Inflicted Damage . | . . . Shots . | . . . Rammed . | . . . Targets Rammed 1 | . 1 . Kicked 1 | . 1 . Crushed . | . . . Highest Temperature 120 | . 120 56 Average Temperature 57 | . 71 28 Received Heat Transfer 224 | . 126 98 Siege Activations . | . . . Robots Corrupted . | . . . Combat Hostiles . | . . . Parts Fried . | . . . Impact Corruptions . | . . . Robots Melted . | . . . Combat Hostiles . | . . . Parts Melted 2 | . 2 . Heat Transferred 786 | 50 325 411 Parts Sabotaged . | . . . Parts Stolen . | . . . Parts Stripped . | . . . Power Chain Reactions . | . . . Alert | -11 -10 -10 ------- Run | Yrd Mat Min Peak Influence 120 | 15 120 76 Initial 46 | . 9 46 Average 55 | 4 54 71 Maximum Alert Level . | . . . Low Security (%) 100 | 100 100 100 Level 1 . | . . . Level 2 . | . . . Level 3 . | . . . Level 4 . | . . . Level 5 . | . . . High Security . | . . . Max Security . | . . . Squads Dispatched . | . . . Investigation . | . . . Extermination . | . . . Reinforcement . | . . . Assault . | . . . Garrison . | . . . Intercept . | . . . Searches Triggered . | . . . Construction Impeded . | . . . Haulers Reinforced . | . . . Active Scanning Responses . | . . . Cargo Convoy Interrupts . | . . . Stealth | -11 -10 -10 --------- Run | Yrd Mat Min Distress Signals . | . . . Communications Jammed . | . . . Distress Signals . | . . . Times Spotted 17 | . 6 11 Peak Tracking Total 5 | . 4 5 Tactical Retreats . | . . . Traps | -11 -10 -10 ------- Run | Yrd Mat Min Traps Triggered . | . . . Indirectly . | . . . Trap Hack Attempts . | . . . Triggered . | . . . Disarmed . | . . . Reprogrammed . | . . . Reused . | . . . Traps Extracted . | . . . Installed . | . . . Triggered . | . . . Machines | -11 -10 -10 ---------- Run | Yrd Mat Min Machines Disabled . | . . . Max in Single Turn . | . . . Machines Repaired . | . . . Machines Dismantled . | . . . Machines Sabotaged . | . . . Overloaded Fab Kills . | . . . Hacking | -11 -10 -10 --------- Run | Yrd Mat Min Machines Accessed . | . . . Terminals . | . . . Fabricators . | . . . Repair Stations . | . . . Recycling Units . | . . . Scanalyzers . | . . . Garrison Access . | . . . Total Hacks . | . . . Successful . | . . . Failed . | . . . Catastrophic . | . . . Database Lockouts . | . . . Manual . | . . . Terminals . | . . . Fabricators . | . . . Repair Stations . | . . . Recycling Units . | . . . Scanalyzers . | . . . Garrison Access . | . . . Terminal Hacks . | . . . Fabricator Hacks . | . . . Repair Station Hacks . | . . . Recycling Unit Hacks . | . . . Scanalyzer . | . . . Garrison Access Hacks . | . . . Unauthorized Hacks . | . . . Terminals . | . . . Fabricators . | . . . Repair Stations . | . . . Recycling Units . | . . . Scanalyzers . | . . . Garrison Access . | . . . Data Cores Recovered . | . . . Used . | . . . Hacking Detections . | . . . Full Trace Events . | . . . Feedback Events . | . . . Feedback Blocked . | . . . Robot Schematics Acquired . | . . . Robots Built . | . . . Authchips . | . . . Time . | . . . Total Robot Build Rating . | . . . Part Schematics Acquired . | . . . Parts Built . | . . . Authchips . | . . . Time . | . . . Total Part Build Rating . | . . . Parts Repaired . | . . . Time . | . . . Parts Recycled . | . . . Recycled Matter . | . . . Retrieved Matter . | . . . Retrieved Components . | . . . Parts Scanalyzed . | . . . Part Schematics Acquired . | . . . Parts Damaged . | . . . Bothacking | -11 -10 -10 ------------ Run | Yrd Mat Min Used RIF Installer . | . . . Robots Hacked . | . . . Non-combat . | . . . Combat . | . . . Robot Hacks Applied . | . . . Relay Couplers Released . | . . . Fabnet Peak Effective % . | . . . Robots Rewired . | . . . Allies Hacked . | . . . Hacks Repelled . | . . . Allies | -11 -10 -10 -------- Run | Yrd Mat Min Total Allies . | . . . Largest Group . | . . . Highest-Rated Group . | . . . Highest-Rated Ally . | . . . Total Orders . | . . . Ally Attacks . | . . . Total Damage . | . . . Kills . | . . . Allies Corrupted . | . . . Allies Melted 1 | . . 1 Intel | -11 -10 -10 ------- Run | Yrd Mat Min Robot Analysis Total . | . . . Derelict Logs Recovered 1 | . . 1 Drone Launches . | . . . Drone Recoveries . | . . . Exploration | -11 -10 -10 ------------- Run | Yrd Mat Min Turns Passed 692 | 113 214 365 Spaces Moved 395 | 80 117 198 Core 9 | 9 . . Treads . | . . . Legs 386 | 71 117 198 Wheels . | . . . Hover . | . . . Flight . | . . . Fastest Speed 50 | 50 120 120 Average Speed 118 | 112 120 120 Slowest Speed 190 | 120 120 190 Overloaded Moves . | . . . Propulsion Burnouts . | . . . Robots Hopped . | . . . Cave-ins Triggered . | . . . Exploration Rate (%) 20 | 7 16 39 Regions Visited 2 Branch Regions 1 Pre-discovered Areas . | . . . Known Exits Taken . | . . . Unknown Exits Taken 2 | 1 1 . Scrap Searched . | . . . Spaces Dug . | . . . Terrain Destroyed . | . . . Melee . | . . . Projectile . | . . . AOE . | . . . Terrain Rammed . | . . . Walls Destroyed . | . . . Machines Disabled . | . . . Actions | -11 -10 -10 --------- Run | Yrd Mat Min Total 538 | 94 156 288 Wait 58 | . 8 50 Move 393 | 79 116 198 Hop . | . . . Pick Up 11 | 5 6 . Fast Attach 10 | 7 . 3 Attach . | . . . Detach . | . . . Swap 6 | . 2 4 Drop 9 | . 5 4 Fire 50 | 3 18 29 Melee . | . . . Ram . | . . . Kick 1 | . 1 . Crush . | . . . Escape Stasis . | . . . Rewire . | . . . Trap . | . . . Miscellaneous . | . . . Route ------- -11/Scrapyard -10/Materials -10/Mines History --------- Turn | Location | Event 7 | -11/Scrapyard | Discovered new exit (range 16) 114 | -11/Scrapyard | Entered Materials 300 | -10/Materials | Build established: Mutant 320 | -10/Materials | Discovered new exit (range 8) 328 | -10/Materials | Entered Mines 395 | -10/Mines | Learned location of 1 exit from Materials 412 | -10/Mines | Assembled infested the area 417 | -10/Mines | Assisted by a Guerilla fighting off Assembled 561 | -10/Mines | Core integrity fell below 50% 641 | -10/Mines | Core integrity fell below 20% 681 | -10/Mines | Build established: Scavenger-Mutant 693 | -10/Mines | Destroyed by as-44613 with Assembled Blade Last Messages --------------- 00593_ R-06 Scavenger destroyed. 00607_ Assault Rifle destroyed. 00612_ as-90197 destroyed. 00614_ Acquired 14 matter. 00622_ as-46635 destroyed. 00640_ as-12397 destroyed. 00642_ Acquired 13 matter. 00643_ Acquired 10 matter. 00651_ U-05 Engineer lays Concrete. 00652_ U-05 Engineer builds a Wall. 00654_ Dropped Aluminum Leg. 00655_ Acquired 14 matter. 00656_ U-05 Engineer builds a Wall. 00658_ Dropped Ion Engine. 00660_ Acquired Particle Gun. 00661_ U-05 Engineer builds a Wall. 00682_ Sml. Laser destroyed. 00685_ Aluminum Leg destroyed. 00692_ Seismic Detector destroyed. 00693_ Aluminum Leg destroyed. Map ----- +----------------------------------------------------+ | ???????## ####??????????????????????????? | | ???????# ##?????????????????????????? | | ???????# ##????????????????????????? | | ???????## #????????????????????????? | | ????????## ## #????????????????????????? | | ??#####??# ### #????????????????????????? | | ?## ##?# #?### #????????????????????????? | | ?# ### #???# #????????????????????????? | | ?# ## #???# #????????????????????????? | | ?# ## ##### #????????????????????????? | | ?## #???????? ???????????????? | | ??## ######## ##??????? ??????????????? | | ???# ######## ##?????? ??????????????? | | ??## #????? ??????????????? | | ### #????? #??????????????? | | """ #????? #??????????????? | | """ #?#### #??????????????? | | ### """ #### #??????????????? | | ##??# ##?? ######?????????? | | ##?## ##??? s #?????????? | | # ### ##????# """ #?????????? | | ## ##????##ss""" #??????????? | | ?### ## ##????## """ #???????????? | | ???## #######????## """ #???????????? | | ????# ### # ###??# a #???????????? | | ???## ## ##?# a@ ##???????????? | | ???# ## # #### ### ##????????????? | | ???## *## # # ###????#?????????????? | | ????# ==# # # # #????????????????????? | | ????# %!## ## ## ##???????????????????? | | ????#####!*= #???????????????????? | | ???????# # ! $#???????????????????? | | ???????# # =%#### # #?????????????????? | | ??????## ## !##?# # # # ??????????????? | | ??????### # # # # " ???????????? | | ??????? # # ### %% ???????????? | | ?????? ###=% ####??? ??????????? | | ????? ? ###???? ## ?????????? | | ????? # #???? #??? ??????????? | | ????# ### ###???? ##???? ??????????? | | ????# ??# ?????? #?????????????????? | | ????# ?? ?????? % #?????????????????? | | ????# ??? ?????? #?????????????????? | | ?????????#! ?????? #?????????????????? | | ?????????#%! ????? #??????????????????? | | ?????????=! ?????????????????????????????? | | ?????????? ??????????????????????????????? | | ???????????????????????????????????????????? | | ???????????????????????????????????????????? | | ???????????????????????????????????????????? | +----------------------------------------------------+ Best States ------------- Heat Dissipation 25 Energy Generation 14 Energy Capacity 250 Matter Stores 296 Matter Capacity 300 Sight Range 16 Terrain Scan Density 10 Evasion (%) 55 Item Schematics ----------------- None Robot Schematics ------------------ None Fabricated ------------ Nothing Alien Tech Used ----------------- None Achievements -------------- None Challenges ------------ None Game ------ Seed MachineMakeshiftWeb Manual? 0 Play Time 00:06:20 Cumulative 36.2 hours Start 2025.04.21 @ 01:45:56 End 2025.04.21 @ 01:50:04 Sessions 1 Manual Loads 0 Difficulty Rogue Special Mode None Game No. 117 Rogue 117 Adventurer 0 Explorer 0 Win Type - Total 0 Types 0/0/0/0/0/0/0/0/0 Lore% 11 Gallery% 32 Achievement% 28 Wizard Run 0 Options --------- Layout 0 ASCII 0 Keyboard 0 Movement Numpad Keybinds 0 Fullscreen 2 Font 18/Terminus Map View 76x50 Zoom Use 0% Tactical HUD 1 Map Filters NONE Filters NONE Steam 1 RUN: dea5bab8-3631-474f-bbb2-6bb7be861019